fUSD/lending_fUSD_20240528
["ID","MTS","AMOUNT","RATE_DAILY","PERIOD"]
[328110985,1716870642182,-295.25096,0.00033387,7]
[328110986,1716870642191,-156.867505,0.00033387,7]
[328110987,1716870642200,-42614.97689878,0.00033388,7]
[328110988,1716870642209,-150.72,0.00033389,2]
[328110989,1716870642226,-150.72,0.0003339,2]
[328110990,1716870642235,-206.93421801,0.00033395,4]
[328110991,1716870642244,-190.15481759,0.00033397,4]
[328110993,1716870642253,-500.0,0.00033398,6]
[328110995,1716870642263,-500.0,0.00033398,6]
[328110996,1716870642272,-500.0,0.00033398,6]
[328110999,1716870642281,-1005.13586163,0.00033398,2]
[328111000,1716870642290,-310.71244753,0.00033398,8]
[328111001,1716870642299,-7855.87175453,0.00033398,4]
[328111002,1716870642309,-433.2246952,0.00033398,30]
[328111003,1716870642318,-198.64341978,0.00033398,10]
[328111004,1716870642327,-27802.68043495,0.00033399,11]
[328111005,1716870642336,-217.0,0.00033399,2]
[328111006,1716870642345,-217.0,0.00033399,2]
[328111007,1716870642354,-207.0,0.00033399,2]
[328111008,1716870642363,-207.0,0.00033399,2]
[328111009,1716870642373,-207.0,0.00033399,2]
[328111010,1716870642382,-207.0,0.00033399,2]
[328111011,1716870642391,-207.0,0.00033399,2]
[328111012,1716870642400,-207.0,0.00033399,2]
[328111013,1716870642409,-207.0,0.00033399,2]
[328111014,1716870642419,-207.0,0.00033399,2]
[328111016,1716870642428,-208.0,0.00033399,2]
[328111017,1716870642437,-208.0,0.00033399,2]
[328111018,1716870642446,-208.0,0.00033399,2]
[328111020,1716870642455,-208.0,0.00033399,2]
[328111022,1716870642464,-208.0,0.00033399,2]
[328111024,1716870642476,-208.0,0.00033399,2]
[328111025,1716870642486,-208.0,0.00033399,2]
[328111026,1716870642495,-208.0,0.00033399,2]
[328111027,1716870642504,-220.0,0.00033399,2]
[328111028,1716870642514,-220.0,0.00033399,2]
[328111029,1716870642523,-220.0,0.00033399,2]
[328111030,1716870642532,-220.0,0.00033399,2]
[328111031,1716870642542,-220.0,0.00033399,2]
[328111033,1716870642550,-220.0,0.00033399,2]
[328111034,1716870642559,-220.0,0.00033399,2]
[328111036,1716870642568,-220.0,0.00033399,2]
[328111038,1716870642577,-3358.46616219,0.00033399,7]
[328111040,1716870642586,-219.29496666,0.00033399,7]
[328111041,1716870642595,-1255.77,0.00033399,6]
[328111043,1716870642604,-500.0,0.00033399,6]
[328111044,1716870642613,-500.0,0.00033399,6]
[328111045,1716870642622,-500.0,0.00033399,6]
[328111046,1716870642632,-28958.4486991,0.00033399,2]
[328111047,1716870642641,-344.0,0.000334,6]
[328111048,1716870642650,-267.2,0.000334,4]
[328111049,1716870642659,-150.0,0.000334,7]
[328111051,1716870642668,-1097.46390603,0.000334,3]
[328111053,1716870642677,-487.0,0.000334,18]
[328111055,1716870642686,-344.0,0.000334,6]
[328111057,1716870642696,-189.0,0.000334,18]
[328111059,1716870642705,-226747.46602752,0.000334,15]
[328111061,1716870642714,-300.0,0.000334,3]
[328111062,1716870642727,-151.0,0.000334,7]
[328111065,1716870642737,-500.0,0.00033409,6]
[328111066,1716870642747,-151.0,0.00033409,7]
[328111068,1716870642757,-500.0,0.00033409,6]
[328111069,1716870642766,-500.0,0.00033409,6]
[328111071,1716870642776,-1255.77,0.00033409,6]
[328111073,1716870642786,-500.0,0.00033409,6]
[328111075,1716870642796,-426.73545228,0.0003341,2]
[328111077,1716870642806,-179.55544558,0.0003341,4]
[328111079,1716870642816,-323.14829562,0.0003341,4]
[328111080,1716870642826,-448.94546397,0.0003341,4]
[328111082,1716870642835,-155.0,0.0003341,4]
[328111084,1716870642844,-235.2107755,0.0003341,4]
[328111086,1716870642854,-624.21897666,0.0003341,4]
[328111088,1716870642863,-155.27156705,0.0003341,4]
[328111090,1716870642873,-267.39042263,0.0003341,4]
[328111092,1716870642882,-2232.01835413,0.0003341,14]
[328111094,1716870642892,-3295.4922768,0.0003341,4]
[328111096,1716870642901,-306.62595739,0.0003341,4]
[328111098,1716870642910,-155.0,0.0003341,4]
[328111100,1716870642919,-200.12509309,0.0003341,4]
[328111102,1716870642929,-1303.57519107,0.0003341,4]
[328111104,1716870642937,-16287.14197647,0.0003341,4]
[328111106,1716870642947,-1592.95321298,0.0003341,4]
[328111107,1716870642956,-160.77907,0.0003341,7]
[328111108,1716870642966,-160.77907,0.0003341,7]
[328111109,1716870642978,-150.0,0.00033411,30]
[328111110,1716870642987,-500.0,0.00033411,6]
[328111111,1716870642996,-500.0,0.00033411,6]
[328111112,1716870643005,-500.0,0.00033411,6]
[328111113,1716870643015,-198.11718035,0.00033411,6]
[328111114,1716870643024,-152.084463,0.00033412,7]
[328111115,1716870643033,-167.052811,0.00033448,42]
[328111116,1716870643042,-500.0,0.00033451,6]
[328111117,1716870643051,-500.0,0.00033451,6]
[328111118,1716870643061,-500.0,0.00033451,6]
[328111119,1716870643070,-500.0,0.00033451,6]
[328111120,1716870643079,-500.0,0.00033451,6]
[328111121,1716870643088,-500.0,0.00033451,6]
[328111122,1716870643097,-500.0,0.00033451,6]
[328111123,1716870643107,-500.0,0.00033451,6]
[328111124,1716870643116,-500.0,0.00033451,6]
[328111125,1716870643126,-500.0,0.00033451,6]
[328111126,1716870643135,-500.0,0.00033451,6]
[328111127,1716870643145,-596.48204337,0.00033451,6]
[328111128,1716870643154,-1255.77,0.00033451,6]
[328111129,1716870643163,-1255.77,0.00033451,6]
[328111130,1716870643173,-1255.77,0.00033451,6]
[328111131,1716870643183,-1255.77,0.00033451,6]
[328111132,1716870643193,-1255.77,0.00033451,6]
[328111133,1716870643203,-1255.77,0.00033451,6]
[328111134,1716870643213,-1255.77,0.00033451,6]
[328111135,1716870643225,-1255.77,0.00033451,6]
[328111136,1716870643241,-1255.77,0.00033451,6]
[328111138,1716870643250,-1255.77,0.00033451,6]
[328111140,1716870643259,-1255.77,0.00033451,6]
[328111142,1716870643267,-1255.77,0.00033451,6]
[328111144,1716870643278,-1255.77,0.00033451,6]
[328111146,1716870643289,-1255.77,0.00033451,6]
[328111148,1716870643299,-1255.77,0.00033451,6]
[328111150,1716870643311,-1255.77,0.00033451,6]
[328111152,1716870643321,-1255.77,0.00033451,6]
[328111154,1716870643331,-1255.77,0.00033451,6]
[328111156,1716870643341,-1255.78042569,0.00033451,6]
[328111158,1716870643351,-500.0,0.00033451,6]
[328111160,1716870643361,-500.0,0.00033451,6]
[328111161,1716870643370,-500.0,0.00033451,6]
[328111163,1716870643380,-851.79553235,0.00033452,2]
[328111165,1716870643391,-151.0,0.00033452,7]
[328111168,1716870643401,-287.15524801,0.00033452,6]
[328111170,1716870643411,-500.0,0.00033452,6]
[328111171,1716870643420,-500.0,0.00033452,6]
[328111174,1716870643430,-500.0,0.00033452,6]
[328111175,1716870643439,-500.0,0.00033452,6]
[328111177,1716870643448,-500.0,0.00033452,6]
[328111180,1716870643458,-500.0,0.00033452,6]
[328111182,1716870643467,-500.0,0.00033452,6]
[328111183,1716870643481,-500.0,0.00033452,6]
[328111185,1716870643491,-500.0,0.00033452,6]
[328111187,1716870643500,-556.80813605,0.00033452,6]
[328111190,1716870643509,-11670.19307629,0.00033452,4]
[328111202,1716870643611,-603.45575644,0.00033452,4]
[328111219,1716870643762,-910.60655848,0.00033452,4]
[328111304,1716870644558,-1062.99965272,0.00033452,4]
[328111306,1716870644575,-7283.51905851,0.00033452,4]
[328111308,1716870644587,-7768.1384,0.00033452,4]
[328111311,1716870644599,-2578.08749756,0.00033452,4]
[328111313,1716870644609,-573.0,0.00033452,4]
[328111315,1716870644619,-3995.20630244,0.00033452,4]
[328111317,1716870644631,-18261.65070178,0.00033452,4]
[328111319,1716870644642,-3810.16434021,0.00033452,4]
[328111321,1716870644653,-396.90333102,0.00033452,4]
[328111324,1716870644664,-358.33485164,0.00033452,4]
[328111326,1716870644675,-3146.42207797,0.00033452,4]
[328111329,1716870644694,-573.2828905,0.00029585,2]
[328111331,1716870644705,-691.7171095,0.00029585,2]
[328111333,1716870644715,-7253.1008105,0.00033359,2]
[328111365,1716870645217,-672.57,0.00033359,2]
[328111368,1716870645259,-1163.68068873,0.00032585,2]
[328111371,1716870645273,-101.31931127,0.00032585,2]
[328111372,1716870645283,-404.21185045,0.00033359,2]
[328111375,1716870645299,-2471.76471234,0.00033359,2]
[328111377,1716870645309,-10316.31839494,0.00033452,4]
[328111379,1716870645319,-290.72739709,0.00033452,30]
[328111381,1716870645329,-157.409529,0.00033453,7]
[328111382,1716870645339,-157.409529,0.00033453,7]
[328111383,1716870645348,-157.409529,0.00033453,7]
[328111384,1716870645357,-157.409529,0.00033453,7]
[328111385,1716870645367,-157.409529,0.00033453,7]
[328111386,1716870645377,-157.409529,0.00033453,7]
[328111387,1716870645386,-157.409529,0.00033453,7]
[328111388,1716870645396,-157.409529,0.00033453,7]
[328111389,1716870645405,-157.409529,0.00033453,7]
[328111390,1716870645415,-157.409529,0.00033453,7]
[328111391,1716870645424,-157.409529,0.00033453,7]
[328111392,1716870645434,-157.409529,0.00033453,7]
[328111393,1716870645444,-157.409529,0.00033453,7]
[328111394,1716870645454,-157.409529,0.00033453,7]
[328111395,1716870645464,-157.409529,0.00033453,7]
[328111396,1716870645474,-157.409529,0.00033453,7]
[328111397,1716870645484,-305.420825,0.00033453,7]
[328111398,1716870645493,-305.420825,0.00033453,7]
[328111399,1716870645503,-305.420825,0.00033453,7]
[328111400,1716870645512,-305.420825,0.00033453,7]
[328111401,1716870645521,-305.420825,0.00033453,7]
[328111402,1716870645531,-305.420825,0.00033453,7]
[328111403,1716870645541,-305.420825,0.00033453,7]
[328111404,1716870645551,-305.420825,0.00033453,7]
[328111405,1716870645561,-305.420825,0.00033453,7]
[328111406,1716870645570,-305.420825,0.00033453,7]
[328111407,1716870645580,-305.420825,0.00033453,7]
[328111408,1716870645590,-305.420825,0.00033453,7]
[328111409,1716870645600,-305.420825,0.00033453,7]
[328111410,1716870645610,-305.420825,0.00033453,7]
[328111411,1716870645620,-305.420825,0.00033453,7]
[328111412,1716870645631,-305.420825,0.00033453,7]
[328111413,1716870645641,-151.0,0.00033453,7]
[328111414,1716870645651,-160.77907,0.00033453,7]
[328111415,1716870645662,-160.77907,0.00033453,7]
[328111416,1716870645672,-160.77907,0.00033453,7]
[328111417,1716870645682,-160.77907,0.00033453,7]
[328111418,1716870645692,-160.77907,0.00033453,7]
[328111419,1716870645702,-160.77907,0.00033453,7]
[328111420,1716870645710,-160.77907,0.00033453,7]
[328111421,1716870645720,-160.77907,0.00033453,7]
[328111422,1716870645730,-160.77907,0.00033453,7]
[328111423,1716870645740,-160.77907,0.00033453,7]
[328111424,1716870645749,-160.77907,0.00033453,7]
[328111425,1716870645759,-160.77907,0.00033453,7]
[328111426,1716870645769,-160.77907,0.00033453,7]
[328111427,1716870645779,-160.77907,0.00033453,7]
[328111428,1716870645789,-160.77907,0.00033453,7]
[328111429,1716870645799,-160.77907,0.00033453,7]
[328111430,1716870645809,-3454.33693165,0.00033459,5]
[328111431,1716870645819,-12806.10305412,0.00033459,2]
[328111432,1716870645830,-453.6603068,0.00033459,2]
[328111433,1716870645840,-7028.85696256,0.00033459,60]
[328111434,1716870645854,-652.20074213,0.00033459,60]
[328111435,1716870645866,-2339.98934178,0.00033459,60]
[328111436,1716870645891,-339.25813426,0.00033459,60]
[328111437,1716870645904,-688.15196471,0.00033459,60]
[328111438,1716870645916,-959.199,0.00033459,60]
[328111439,1716870645933,-389.72999925,0.00029841,2]
[328111440,1716870645945,-224.27000075,0.00029841,2]
[328111441,1716870645955,-5879.72954161,0.00033459,60]
[328111442,1716870645967,-7376.95188826,0.00033459,60]
[328111443,1716870645981,-617.42097586,0.00033459,60]
[328111444,1716870645992,-631.33700009,0.00033459,60]
[328111445,1716870646004,-345.59999998,0.00033459,60]
[328111446,1716870646016,-495.28604812,0.00033459,60]
[328111447,1716870646028,-680.51216495,0.00033459,60]
[328111448,1716870646077,-676.90623,0.00033459,60]
[328111449,1716870646090,-6719.10625203,0.00033459,60]
[328111450,1716870646102,-47250.3175833,0.00033459,60]
[328111451,1716870646135,-614.0,0.00032841,2]
[328111452,1716870646145,-852.44,0.0003334,10]
[328111453,1716870646155,-2100.0,0.00033359,2]
[328111454,1716870646165,-605889.44089865,0.00033459,60]
[328111455,1716870646177,-587.2106192,0.00033459,60]
[328111456,1716870646189,-1066.32182804,0.00033459,60]
[328111457,1716870646200,-20359.08022655,0.00033459,60]
[328111458,1716870646212,-3892.0013106,0.00033459,60]
[328111459,1716870646227,-1812.0405461,0.00033459,60]
[328111460,1716870646243,-489.23716,0.00033459,60]
[328111461,1716870646254,-736.37395775,0.00033459,60]
[328111462,1716870646265,-3827.0,0.00033459,60]
[328111463,1716870646276,-4540.0,0.00033459,60]
[328111464,1716870646287,-28155.64499986,0.00033459,60]
[328111465,1716870646298,-78816.60805337,0.00033459,60]
[328111466,1716870646311,-582.270009,0.00033459,60]
[328111467,1716870646330,-7523.48930144,0.00033339,4]
[328111468,1716870646339,-147155.62256877,0.00033459,60]
[328111479,1716870647433,-1225.0,0.00029841,2]
[328111480,1716870647442,-1068.8895126,0.00032742,5]
[328111481,1716870647451,-1225.0,0.00032841,2]
[328111482,1716870647461,-688.04779437,0.00033458,4]
[328111483,1716870647470,-644.15206775,0.00033458,4]
[328111484,1716870647483,-515.0,0.00033459,5]
[328111485,1716870647493,-163419.69331843,0.00033459,60]
[328111486,1716870647587,-135425.99999996,0.00033459,60]
[328111487,1716870647598,-957.15,0.00033459,60]
[328111488,1716870647610,-1693.025,0.00033459,60]
[328111489,1716870647621,-6091.06682084,0.00033459,60]
[328111490,1716870647634,-1958.39999999,0.00033459,60]
[328111491,1716870647646,-1529.33261029,0.00033459,60]
[328111492,1716870647682,-21598.28224,0.00033459,60]
[328111493,1716870647692,-384.9,0.00033459,60]
[328111494,1716870647818,-588.76077356,0.00033458,4]
[328111509,1716870651682,18734.89090925,0.00010477,2]
[328111510,1716870653852,547850.12707183,0.00010477,2]
[328111511,1716870659235,20237.04940009,0.00010477,2]
[328111512,1716870662023,174.92015177,0.00010477,2]
[328111517,1716870671631,15150.28269468,0.00010477,2]
[328111518,1716870673789,280401.01661517,0.00010477,2]
[328111520,1716870677984,155.18995208,0.00010477,2]
[328111521,1716870679230,20237.04940009,0.00010477,2]
[328111522,1716870691770,233908.17108295,0.00010477,2]
[328111524,1716870695747,170.9794363,9.953e-05,2]
[328111525,1716870695774,314.15744912,9.953e-05,2]
[328111526,1716870703228,17434.25383899,0.00010477,2]
[328111527,1716870708437,170.99567086,5e-05,2]
[328111528,1716870748074,155.0,5e-05,2]
[328111530,1716870758373,150.0,5e-05,2]
[328111531,1716870758395,212.38046027,5e-05,2]
[328111532,1716870758416,0.61073365,5e-05,2]
[328111534,1716870769987,155.0,5e-05,2]
[328111540,1716870804366,272.36270278,5e-05,2]
[328111548,1716870825580,3096768.24852399,0.00013,2]
[328111560,1716870947701,343.7722286,0.00013,2]
[328111561,1716870968730,254.18206746,0.00013,2]
[328111596,1716871644166,-242.14014188,0.00013994,2]
[328111607,1716871831776,-526.80538769,0.00013991,2]
[328111608,1716871831786,-156.32664826,0.00013992,2]
[328111609,1716871831796,-5570.7220395,0.00013992,2]
[328111610,1716871831805,-2189.24448954,0.00013992,2]
[328111612,1716871831815,-1897.83949895,0.00013993,2]
[328111614,1716871831824,-72.22252969,0.00013994,2]
[328111616,1716871831833,-695.0,0.00013994,2]
[328111617,1716871831843,-20225.28791848,0.00013994,2]
[328111618,1716871831853,-8851.60128361,0.00013994,2]
[328111619,1716871831862,-191.39,0.00013994,2]
[328111620,1716871831875,-893.84788414,0.00013994,2]
[328111621,1716871831884,-911.61667242,0.00013995,2]
[328111622,1716871831893,-1039.84746642,0.00014,2]
[328111623,1716871831902,-150.0,0.00014999,2]
[328111624,1716871831912,-1246.52348474,0.00014999,2]
[328111625,1716871831921,-13122.98168577,0.00015,2]
[328111626,1716871831930,-155.0,0.00016498,2]
[328111627,1716871831940,-210.0,0.00016499,2]
[328111628,1716871831949,-414.7,0.00017808,2]
[328111629,1716871831958,-20365.39,0.00017808,2]
[328111630,1716871831968,-150.0,0.00019973,2]
[328111631,1716871831981,-445.6637425,0.0002,2]
[328111632,1716871831991,-3743.85498937,0.0002,2]
[328111633,1716871832000,-4891.93757754,0.0002,2]
[328111634,1716871832009,-151.0,0.00021303,3]
[328111635,1716871832019,-300.0,0.00021598,2]
[328111636,1716871832029,-341.98,0.0002167,2]
[328111637,1716871832038,-509.01759415,0.000219,2]
[328111638,1716871832048,-2919.0,0.000224,3]
[328111639,1716871832058,-151.0,0.00022408,3]
[328111640,1716871832068,-1751.14,0.00023296,2]
[328111641,1716871832079,-3873.69,0.00023322,2]
[328111642,1716871832089,-352.89,0.00023356,2]
[328111643,1716871832099,-10000.0,0.00023364,2]
[328111644,1716871832108,-805.55,0.00023377,2]
[328111645,1716871832118,-154.6,0.00023384,2]
[328111646,1716871832135,-1009.78,0.00023391,2]
[328111647,1716871832145,-2568.63,0.000234,2]
[328111648,1716871832154,-514.7,0.00023414,2]
[328111649,1716871832163,-22202.42,0.00023548,2]
[328111650,1716871832172,-1434.47,0.00023619,2]
[328111651,1716871832182,-250.0,0.0002371,2]
[328111652,1716871832191,-834.64,0.0002371,2]
[328111653,1716871832200,-187.66,0.00023776,2]
[328111654,1716871832210,-250.0,0.00023801,2]
[328111655,1716871832219,-200.0,0.00023816,2]
[328111656,1716871832229,-377.01,0.00023842,2]
[328111657,1716871832238,-338.57,0.0002386,2]
[328111658,1716871832247,-167.02,0.00023885,2]
[328111659,1716871832257,-1680.72,0.00023912,2]
[328111660,1716871832266,-500.0,0.00023928,2]
[328111661,1716871832276,-341.98,0.00023934,2]
[328111662,1716871832285,-154.65,0.0002398,2]
[328111663,1716871832295,-156.04544168,0.00024,2]
[328111664,1716871832304,-150.03852741,0.0002407,2]
[328111665,1716871832314,-150.03852741,0.00024083,2]
[328111666,1716871832323,-171.94,0.00024227,2]
[328111667,1716871832333,-156.04544168,0.00024373,2]
[328111668,1716871832342,-154.65,0.00024397,2]
[328111669,1716871832352,-152.34218527,0.00024418,2]
[328111670,1716871832361,-155.74834841,0.0002452,2]
[328111671,1716871832376,-352.89,0.00024524,2]
[328111672,1716871832385,-156.04544168,0.00024583,2]
[328111673,1716871832394,-152.79444414,0.00024619,2]
[328111674,1716871832403,-167.0,0.00024721,2]
[328111675,1716871832412,-154.65,0.00024813,2]
[328111676,1716871832421,-152.34218527,0.00024934,2]
[328111677,1716871832430,-337.88060761,0.00025,7]
[328111678,1716871832441,-150.03852741,0.00025013,2]
[328111679,1716871832450,-154.65,0.0002523,2]
[328111680,1716871832459,-150.03852741,0.00025267,2]
[328111681,1716871832469,-150.03852741,0.00025316,2]
[328111682,1716871832479,-150.03852741,0.00025412,2]
[328111683,1716871832488,-156.04544168,0.00025433,2]
[328111684,1716871832497,-1299.11942176,0.00025458,2]
[328111685,1716871832509,-155.74834841,0.00025521,2]
[328111686,1716871832519,-352.89,0.00025692,2]
[328111687,1716871832530,-150.03852741,0.00025763,2]
[328111688,1716871832539,-150.03852741,0.00025846,2]
[328111689,1716871832549,-167.0,0.00026081,2]
[328111690,1716871832558,-341.98,0.00026198,2]
[328111691,1716871832567,-155.74834841,0.00026226,2]
[328111692,1716871832577,-514.7,0.0002634,2]
[328111693,1716871832587,-155.74834841,0.00026407,2]
[328111694,1716871832596,-155.74834841,0.00026488,2]
[328111695,1716871832607,-152.9914788,0.00026648,2]
[328111696,1716871832619,-1048.84143009,0.00026722,2]
[328111697,1716871832632,-306.44392399,0.00026722,2]
[328111698,1716871832642,-2666.03774736,0.00026722,2]
[328111699,1716871832651,-150.72,0.0002679,2]
[328111700,1716871832660,-150.72,0.0002679,2]
[328111701,1716871832669,-150.72,0.0002679,2]
[328111702,1716871832679,-150.72,0.0002679,2]
[328111703,1716871832689,-213.5332016,0.00026798,2]
[328111704,1716871832700,-3287.82954979,0.00026798,2]
[328111705,1716871832710,-269.081469,0.00026798,2]
[328111706,1716871832720,-1206.57274375,0.00026798,2]
[328111707,1716871832729,-155.33513823,0.00026798,2]
[328111708,1716871832739,-155.0,0.00026798,2]
[328111709,1716871832749,-1247.61899191,0.00026798,2]
[328111710,1716871832758,-2815.28122404,0.00026798,2]
[328111711,1716871832769,-1075.91653761,0.00026798,2]
[328111712,1716871832779,-940.49566822,0.00026798,2]
[328111713,1716871832789,-155.10593488,0.00026798,2]
[328111714,1716871832800,-531.68386938,0.00026798,2]
[328111715,1716871832810,-544.46933026,0.00026798,2]
[328111716,1716871832822,-155.97199839,0.00026798,2]
[328111717,1716871832831,-5278.29883426,0.00026798,2]
[328111718,1716871832840,-286.26535666,0.00026798,2]
[328111719,1716871832850,-1000.0,0.00026799,2]
[328111720,1716871832859,-500.0,0.00026799,2]
[328111721,1716871832869,-500.0,0.00026799,2]
[328111722,1716871832880,-500.0,0.00026799,2]
[328111723,1716871832889,-500.0,0.00026799,2]
[328111724,1716871832898,-285.14827773,0.00026799,2]
[328111725,1716871832907,-500.0,0.00026799,2]
[328111726,1716871832916,-500.0,0.00026799,2]
[328111727,1716871832925,-500.0,0.00026799,2]
[328111728,1716871832934,-500.0,0.00026799,2]
[328111729,1716871832944,-500.0,0.00026799,2]
[328111730,1716871832953,-500.0,0.00026799,2]
[328111731,1716871832963,-500.0,0.00026799,2]
[328111732,1716871832972,-500.0,0.00026799,2]
[328111733,1716871832982,-500.0,0.00026799,2]
[328111734,1716871832992,-500.0,0.00026799,2]
[328111735,1716871833197,-500.0,0.00026799,2]
[328111736,1716871833212,-500.0,0.00026799,2]
[328111737,1716871833221,-158.12597723,0.00026799,2]
[328111738,1716871833231,-500.0,0.00026799,2]
[328111739,1716871833240,-500.0,0.00026799,2]
[328111740,1716871833249,-500.0,0.00026799,2]
[328111741,1716871833258,-500.0,0.00026799,2]
[328111742,1716871833268,-500.0,0.00026799,2]
[328111743,1716871833278,-500.0,0.00026799,2]
[328111744,1716871833288,-174.09813121,0.00026799,2]
[328111745,1716871833297,-500.0,0.00026799,2]
[328111746,1716871833306,-525.51953165,0.00026799,2]
[328111747,1716871833316,-500.0,0.00026799,2]
[328111748,1716871833325,-500.0,0.00026799,2]
[328111749,1716871833335,-500.0,0.00026799,2]
[328111750,1716871833345,-500.0,0.00026799,2]
[328111751,1716871833354,-289074.05758918,0.000268,2]
[328111752,1716871833410,-2716.7799705,0.000268,2]
[328111753,1716871833421,-315.04,0.000268,2]
[328111754,1716871833433,-728.92117432,0.000268,2]
[328111755,1716871833448,-1354.47927878,0.000268,2]
[328111756,1716871833501,-210.53883072,0.00013991,2]
[328111757,1716871833510,-466.82318928,0.00013992,2]
[328111758,1716871833526,-2899.64000025,0.00013992,2]
[328111760,1716871837704,-155.0,0.00013991,2]
[328111762,1716871837714,-929.73053109,0.00013992,2]
[328111763,1716871837726,-1486.53717137,0.00013992,2]
[328111764,1716871837738,-358.31033924,0.00013992,2]
[328111765,1716871837801,-1383.87365237,0.00013992,2]
[328111766,1716871837811,-1180.95563535,0.00013992,2]
[328111767,1716871837820,-14727.59875514,0.000268,11]
[328111768,1716871837830,-16632.41465714,0.000268,2]
[328111769,1716871837867,-2409.64646997,0.000268,2]
[328111770,1716871837880,-1801.79802,0.000268,2]
[328111771,1716871837942,-3652.45937007,0.000268,2]
[328111772,1716871837956,-679.69349376,0.000268,2]
[328111773,1716871837968,-409.25891001,0.000268,2]
[328111790,1716871840470,-502.0,0.00013991,2]
[328111792,1716871840480,-493.79816804,0.000268,2]
[328111799,1716871840545,-250.4005637,0.000268,2]
[328111812,1716871841217,-128954.20879726,0.000268,2]
[328111813,1716871841290,-54599.35833664,0.000268,2]
[328111814,1716871841304,-25619.15325793,0.000268,2]
[328111815,1716871841318,-5910.91556201,0.000268,2]
[328111816,1716871841330,-819.647458,0.000268,2]
[328111817,1716871841355,-2221.94984755,0.000268,2]
[328111828,1716871843204,-157.28519268,0.00026799,2]
[328111829,1716871843213,-1062.71480733,0.000268,2]
[328111832,1716871843268,-1130.5794556,0.000268,2]
[328111833,1716871843280,-9537.10358818,0.000268,2]
[328111834,1716871843291,-289.20231353,0.000268,2]
[328111835,1716871843348,-2267.5,0.000268,2]
[328111836,1716871843449,-960.0,0.00026799,2]
[328111837,1716871843460,-271.65498901,0.00026799,2]
[328111838,1716871843637,-14.86849573,0.00026799,2]
[328111839,1716871843647,-811.39051899,0.000268,2]
[328111840,1716871844526,-1031.53958,0.000268,2]
[328111841,1716871844542,-623.25,0.000268,2]
[328111842,1716871844553,-19200.96949321,0.000268,2]
[328111844,1716871845788,-287.37969248,0.00026798,2]
[328111845,1716871845797,-2481.48001139,0.000268,2]
[328111846,1716871845809,-1912.9668,0.000268,2]
[328111847,1716871845820,-302.54163631,0.000268,2]
[328111848,1716871845855,-530.6,0.000268,2]
[328111849,1716871849074,-2003.2277311,0.00017259,2]
[328111850,1716871849084,-2331.50342214,0.00017259,2]
[328111851,1716871849094,-3232.35042503,0.00019725,2]
[328111852,1716871849105,-20023.10395274,0.00019725,2]
[328111853,1716871849116,-1376.84603702,0.00019725,2]
[328111854,1716871849145,-272.69910537,0.00019725,2]
[328111855,1716871849156,-1303.58494265,0.00019725,2]
[328111856,1716871849167,-3730.04859743,0.00019725,2]
[328111857,1716871849179,-1333.14755087,0.00019725,2]
[328111858,1716871849190,-3810.71448115,0.00019725,2]
[328111859,1716871849201,-8142.94029396,0.00019725,2]
[328111860,1716871849212,-130.53110251,0.00019725,2]
[328111861,1716871849221,-460.54321371,0.00025458,7]
[328111862,1716871849230,-940.49566822,0.00026798,2]
[328111863,1716871849240,-722.63058428,0.00026799,2]
[328111864,1716871849288,-3393.1567,0.00026799,2]
[328111865,1716871849299,-1454.93475522,0.00026799,2]
[328111866,1716871849308,-465.86524478,0.00026799,2]
[328111867,1716871849320,-497.75,0.00026799,2]
[328111868,1716871849346,-262.1302837,0.00026799,2]
[328111869,1716871849355,-60.7897164,0.00026799,2]
[328111879,1716872110912,-155.0,0.00013493,2]